[Event "Titled Tuesday Blitz November 07 Late 2023"]
[White "Martins, Vinicius Tine"]
[Black "Przybylski, Wojciech"]
[WhiteFideId "2112884"]
[BlackFideId "1117599"]
[WhiteElo "2398"]
[BlackElo "2514"]
[Result "1-0"]
[Round "11"]
[TimeControl "180+1"]
[Date "2023.11.07"]
[WhiteClock "0:00:21"]
[BlackClock "0:00:00"]
[Board "61"]

1. d4 {[%clk 0:03:00]}  d5 {[%clk 0:02:52]} 2. Bf4 {[%clk 0:03:00]}  Bf5 {[%clk 0:02:49]} 3. Nf3 {[%clk 0:02:58]}  Nf6 {[%clk 0:02:49]} 4. e3 {[%clk 0:02:58]}  e6 {[%clk 0:02:49]} 5. Nbd2 {[%clk 0:02:43]}  Nbd7 {[%clk 0:02:48]} 6. Ne5 {[%clk 0:02:39]}  Ne4 {[%clk 0:02:46]} 7. Nxe4 {[%clk 0:02:31]}  Nxe5 {[%clk 0:02:42]} 8. Nf6+ {[%clk 0:01:54]}  gxf6 {[%clk 0:02:38]} 9. dxe5 {[%clk 0:01:53]}  Rg8 {[%clk 0:02:27]} 10. c3 {[%clk 0:01:49]}  c6 {[%clk 0:02:16]} 11. exf6 {[%clk 0:01:46]}  Qxf6 {[%clk 0:02:15]} 12. Qb3 {[%clk 0:01:43]}  O-O-O {[%clk 0:02:11]} 13. Qa4 {[%clk 0:01:22]}  e5 {[%clk 0:02:06]} 14. Bg3 {[%clk 0:01:21]}  Bc5 {[%clk 0:01:27]} 15. Bh4 {[%clk 0:01:15]}  Qh6 {[%clk 0:01:27]} 16. Bxd8 {[%clk 0:01:13]}  Rxd8 {[%clk 0:01:28]} 17. Be2 {[%clk 0:01:12]}  Qg6 {[%clk 0:01:07]} 18. g3 {[%clk 0:00:57]}  Be4 {[%clk 0:01:03]} 19. O-O {[%clk 0:00:51]}  Qe6 {[%clk 0:00:50]} 20. Rfe1 {[%clk 0:00:43]}  h5 {[%clk 0:00:35]} 21. Bf1 {[%clk 0:00:39]}  h4 {[%clk 0:00:34]} 22. Bg2 {[%clk 0:00:38]}  f5 {[%clk 0:00:29]} 23. Rad1 {[%clk 0:00:27]}  Bxg2 {[%clk 0:00:28]} 24. Kxg2 {[%clk 0:00:27]}  e4 {[%clk 0:00:28]} 25. Kf1 {[%clk 0:00:22]}  f4 {[%clk 0:00:27]} 26. gxf4 {[%clk 0:00:20]}  Qg4 {[%clk 0:00:27]} 27. Re2 {[%clk 0:00:17]}  h3 {[%clk 0:00:21]} 28. Ke1 {[%clk 0:00:17]}  Qg1+ {[%clk 0:00:21]} 29. Kd2 {[%clk 0:00:17]}  Qxh2 {[%clk 0:00:21]} 30. Kc2 {[%clk 0:00:14]}  Qg2 {[%clk 0:00:21]} 31. Kb1 {[%clk 0:00:10]}  h2 {[%clk 0:00:20]} 32. Ree1 {[%clk 0:00:10]}  Qxf2 {[%clk 0:00:19]} 33. Qc2 {[%clk 0:00:08]}  Qh4 {[%clk 0:00:18]} 34. Rh1 {[%clk 0:00:07]}  Rh8 {[%clk 0:00:17]} 35. Qe2 {[%clk 0:00:06]}  Qg3 {[%clk 0:00:17]} 36. Rdf1 {[%clk 0:00:07]}  Bxe3 {[%clk 0:00:16]} 37. f5 {[%clk 0:00:07]}  Bc5 {[%clk 0:00:14]} 38. f6 {[%clk 0:00:07]}  Qg6 {[%clk 0:00:11]} 39. f7 {[%clk 0:00:08]}  Rf8 {[%clk 0:00:10]} 40. Qxh2 {[%clk 0:00:07]}  Rxf7 {[%clk 0:00:10]} 41. Qh8+ {[%clk 0:00:06]}  Kc7 {[%clk 0:00:09]} 42. Rxf7+ {[%clk 0:00:07]}  Kb6 {[%clk 0:00:09]} 43. Rf2 {[%clk 0:00:05]}  Bxf2 {[%clk 0:00:08]} 44. Qh2 {[%clk 0:00:03]}  Bc5 {[%clk 0:00:07]} 45. Ka1 {[%clk 0:00:03]}  e3 {[%clk 0:00:07]} 46. Qe2 {[%clk 0:00:03]}  Qe4 {[%clk 0:00:07]} 47. Re1 {[%clk 0:00:04]}  a6 {[%clk 0:00:07]} 48. Rd1 {[%clk 0:00:04]}  Ka7 {[%clk 0:00:07]} 49. a3 {[%clk 0:00:04]}  a5 {[%clk 0:00:07]} 50. Ka2 {[%clk 0:00:05]}  a4 {[%clk 0:00:07]} 51. Ka1 {[%clk 0:00:05]}  Bb6 {[%clk 0:00:07]} 52. Ka2 {[%clk 0:00:06]}  c5 {[%clk 0:00:07]} 53. Ka1 {[%clk 0:00:06]}  d4 {[%clk 0:00:07]} 54. cxd4 {[%clk 0:00:07]}  cxd4 {[%clk 0:00:08]} 55. Rd3 {[%clk 0:00:07]}  Qc6 {[%clk 0:00:07]} 56. Ka2 {[%clk 0:00:07]}  Qc4+ {[%clk 0:00:07]} 57. Kb1 {[%clk 0:00:08]}  Qb5 {[%clk 0:00:07]} 58. Qc2 {[%clk 0:00:08]}  Qd7 {[%clk 0:00:06]} 59. Qe2 {[%clk 0:00:08]}  Qc6 {[%clk 0:00:06]} 60. Qe1 {[%clk 0:00:06]}  Qe4 {[%clk 0:00:05]} 61. Qe2 {[%clk 0:00:07]}  Bc5 {[%clk 0:00:05]} 62. Ka1 {[%clk 0:00:08]}  Bb6 {[%clk 0:00:05]} 63. Rd1 {[%clk 0:00:08]}  Qc6 {[%clk 0:00:04]} 64. Rd3 {[%clk 0:00:08]}  Qc4 {[%clk 0:00:04]} 65. Kb1 {[%clk 0:00:08]}  Ba5 {[%clk 0:00:05]} 66. Rxe3 {[%clk 0:00:08]}  Qd5 {[%clk 0:00:04]} 67. Rd3 {[%clk 0:00:08]}  Qf5 {[%clk 0:00:03]} 68. Qd1 {[%clk 0:00:09]}  Bb6 {[%clk 0:00:03]} 69. Ka1 {[%clk 0:00:10]}  Qb5 {[%clk 0:00:03]} 70. Qc2 {[%clk 0:00:10]}  Bc5 {[%clk 0:00:03]} 71. Qd1 {[%clk 0:00:10]}  b6 {[%clk 0:00:04]} 72. Qb1 {[%clk 0:00:11]}  Qd7 {[%clk 0:00:04]} 73. Qd1 {[%clk 0:00:11]}  Kb7 {[%clk 0:00:04]} 74. Rd2 {[%clk 0:00:11]}  Ka6 {[%clk 0:00:04]} 75. Rd3 {[%clk 0:00:12]}  Ka7 {[%clk 0:00:05]} 76. Qc2 {[%clk 0:00:12]}  Qd5 {[%clk 0:00:05]} 77. Qd2 {[%clk 0:00:12]}  Kb7 {[%clk 0:00:05]} 78. Qd1 {[%clk 0:00:12]}  Qd7 {[%clk 0:00:05]} 79. Rf3 {[%clk 0:00:13]}  Ka6 {[%clk 0:00:05]} 80. Rd3 {[%clk 0:00:12]}  b5 {[%clk 0:00:05]} 81. Rf3 {[%clk 0:00:13]}  Bb6 {[%clk 0:00:05]} 82. Qd3 {[%clk 0:00:12]}  Qd5 {[%clk 0:00:05]} 83. Rh3 {[%clk 0:00:12]}  Qg2 {[%clk 0:00:05]} 84. Rh5 {[%clk 0:00:11]}  Qg1+ {[%clk 0:00:05]} 85. Ka2 {[%clk 0:00:11]}  Qg8+ {[%clk 0:00:05]} 86. Ka1 {[%clk 0:00:10]}  Qg1+ {[%clk 0:00:04]} 87. Qb1 {[%clk 0:00:10]}  Qf2 {[%clk 0:00:04]} 88. Rh3 {[%clk 0:00:10]}  Qe2 {[%clk 0:00:04]} 89. Rd3 {[%clk 0:00:11]}  Qe4 {[%clk 0:00:03]} 90. Qd1 {[%clk 0:00:12]}  Qe5 {[%clk 0:00:03]} 91. Qc2 {[%clk 0:00:12]}  Qd5 {[%clk 0:00:03]} 92. Qd1 {[%clk 0:00:12]}  Bc5 {[%clk 0:00:04]} 93. Qc2 {[%clk 0:00:13]}  Qc4 {[%clk 0:00:03]} 94. Qd2 {[%clk 0:00:13]}  Bb6 {[%clk 0:00:03]} 95. Rh3 {[%clk 0:00:13]}  Qe6 {[%clk 0:00:03]} 96. Qd3 {[%clk 0:00:13]}  Qe5 {[%clk 0:00:02]} 97. Ka2 {[%clk 0:00:13]}  Qe6+ {[%clk 0:00:02]} 98. Ka1 {[%clk 0:00:13]}  Qg8 {[%clk 0:00:02]} 99. Qb1 {[%clk 0:00:13]}  Qg4 {[%clk 0:00:02]} 100. Rd3 {[%clk 0:00:14]}  Qe4 {[%clk 0:00:02]} 101. Qd1 {[%clk 0:00:14]}  Qe5 {[%clk 0:00:02]} 102. Qf1 {[%clk 0:00:15]}  Qe4 {[%clk 0:00:02]} 103. Rd2 {[%clk 0:00:15]}  Qd5 {[%clk 0:00:02]} 104. Re2 {[%clk 0:00:15]}  Qc4 {[%clk 0:00:02]} 105. Re1 {[%clk 0:00:15]}  d3 {[%clk 0:00:02]} 106. Rd1 {[%clk 0:00:15]}  Bd4 {[%clk 0:00:02]} 107. Qxd3 {[%clk 0:00:15]}  Qxd3 {[%clk 0:00:02]} 108. Rxd3 {[%clk 0:00:15]}  Bc5 {[%clk 0:00:03]} 109. Ka2 {[%clk 0:00:15]}  Kb6 {[%clk 0:00:03]} 110. Kb1 {[%clk 0:00:16]}  Be7 {[%clk 0:00:02]} 111. Kc2 {[%clk 0:00:17]}  Bc5 {[%clk 0:00:02]} 112. Rf3 {[%clk 0:00:18]}  Bd6 {[%clk 0:00:02]} 113. Kd3 {[%clk 0:00:18]}  Kc5 {[%clk 0:00:02]} 114. Rf5+ {[%clk 0:00:19]}  Kc6 {[%clk 0:00:02]} 115. Rh5 {[%clk 0:00:19]}  Be7 {[%clk 0:00:02]} 116. Kc2 {[%clk 0:00:20]}  Bc5 {[%clk 0:00:02]} 117. b3 {[%clk 0:00:20]}  axb3+ {[%clk 0:00:02]} 118. Kxb3 {[%clk 0:00:20]}  Be7 {[%clk 0:00:02]} 119. Rh6+ {[%clk 0:00:20]}  Kc5 {[%clk 0:00:02]} 120. Rg6 {[%clk 0:00:21]}  Bf8 {[%clk 0:00:02]} 121. Rg5+ {[%clk 0:00:21]}  Kb6 {[%clk 0:00:02]} 122. Rf5 {[%clk 0:00:21]}  Be7 {[%clk 0:00:02]} 123. Rf7 {[%clk 0:00:21]}  Bc5 {[%clk 0:00:02]} 124. Rf6+ {[%clk 0:00:21]}  Kb7 {[%clk 0:00:01]} 125. Rg6 {[%clk 0:00:22]}  Kc7 {[%clk 0:00:02]} 126. a4 {[%clk 0:00:21]}  bxa4+ {[%clk 0:00:02]} 127. Kxa4 {[%clk 0:00:22]}  Bd4 {[%clk 0:00:02]} 128. Kb5 {[%clk 0:00:22]}  Be5 {[%clk 0:00:01]} 129. Kc5 {[%clk 0:00:22]}  Bf4 {[%clk 0:00:01]} 130. Rg7+ {[%clk 0:00:21]}  Kb8 {[%clk 0:00:01]} 131. Kc6 {[%clk 0:00:21]}  Ka8 {[%clk 0:00:01]} 132. Rf7 {[%clk 0:00:21]}  Be3 {[%clk 0:00:01]} 133. Rf8+ {[%clk 0:00:21]}  Ka7 {[%clk 0:00:00]} 134. Re8 {[%clk 0:00:21]} 1-0


[Site "https://www.chess.com"]

[Event "Titled Tuesday Blitz November 07 Late 2023"]
[White "Jamal-Jamal-Jamal"]
[Black "elmusmolamas"]
[WhiteElo "2351"]
[BlackElo "2473"]
[Result "1-0"]
[Round "11"]
[TimeControl "180+1"]
[Date "2023.11.07"]
[WhiteClock "0:00:06"]
[BlackClock "0:00:36"]
[Board "62"]

1. e4 {[%clk 0:03:00]}  c6 {[%clk 0:02:58]} 2. d4 {[%clk 0:03:00]}  d5 {[%clk 0:02:59]} 3. e5 {[%clk 0:03:00]}  Bf5 {[%clk 0:02:57]} 4. Nf3 {[%clk 0:03:01]}  h6 {[%clk 0:02:52]} 5. Be2 {[%clk 0:03:01]}  e6 {[%clk 0:02:52]} 6. O-O {[%clk 0:03:01]}  c5 {[%clk 0:02:52]} 7. Be3 {[%clk 0:03:00]}  Nc6 {[%clk 0:02:52]} 8. dxc5 {[%clk 0:02:59]}  Qc7 {[%clk 0:02:44]} 9. c3 {[%clk 0:02:57]}  Nxe5 {[%clk 0:02:42]} 10. Nxe5 {[%clk 0:02:57]}  Qxe5 {[%clk 0:02:43]} 11. Bb5+ {[%clk 0:02:57]}  Kd8 {[%clk 0:02:41]} 12. Qd2 {[%clk 0:02:56]}  Qc7 {[%clk 0:02:34]} 13. b4 {[%clk 0:02:55]}  Nf6 {[%clk 0:02:32]} 14. c4 {[%clk 0:02:55]}  Kc8 {[%clk 0:02:16]} 15. Nc3 {[%clk 0:02:52]}  a6 {[%clk 0:02:14]} 16. Ba4 {[%clk 0:02:51]}  dxc4 {[%clk 0:02:07]} 17. Rad1 {[%clk 0:02:47]}  Be7 {[%clk 0:02:07]} 18. Rfe1 {[%clk 0:02:29]}  Bd3 {[%clk 0:02:01]} 19. Bf4 {[%clk 0:02:27]}  Qd8 {[%clk 0:01:55]} 20. c6 {[%clk 0:02:19]}  b5 {[%clk 0:01:54]} 21. Bc2 {[%clk 0:02:18]}  Bxb4 {[%clk 0:01:53]} 22. Bxd3 {[%clk 0:02:18]}  Qxd3 {[%clk 0:01:52]} 23. Qxd3 {[%clk 0:02:18]}  cxd3 {[%clk 0:01:53]} 24. Rxd3 {[%clk 0:02:19]}  Rd8 {[%clk 0:01:38]} 25. Rxd8+ {[%clk 0:02:15]}  Kxd8 {[%clk 0:01:39]} 26. Be5 {[%clk 0:02:15]}  Ke7 {[%clk 0:01:40]} 27. c7 {[%clk 0:02:13]}  Rc8 {[%clk 0:01:38]} 28. Bxf6+ {[%clk 0:02:12]}  gxf6 {[%clk 0:01:30]} 29. Nd5+ {[%clk 0:02:12]}  Kd6 {[%clk 0:01:27]} 30. Nxb4 {[%clk 0:02:13]}  Rxc7 {[%clk 0:01:27]} 31. Nxa6 {[%clk 0:02:13]}  Ra7 {[%clk 0:01:27]} 32. Nb4 {[%clk 0:02:12]}  Ra4 {[%clk 0:01:28]} 33. Rb1 {[%clk 0:02:08]}  Kc5 {[%clk 0:01:28]} 34. Nd3+ {[%clk 0:02:08]}  Kb6 {[%clk 0:01:26]} 35. Rb2 {[%clk 0:02:07]}  Rd4 {[%clk 0:01:21]} 36. Ne1 {[%clk 0:02:05]}  Ka5 {[%clk 0:01:15]} 37. Kf1 {[%clk 0:02:05]}  Ka4 {[%clk 0:01:15]} 38. f3 {[%clk 0:02:04]}  e5 {[%clk 0:01:11]} 39. Ke2 {[%clk 0:02:03]}  h5 {[%clk 0:01:01]} 40. Nc2 {[%clk 0:02:00]}  Rd8 {[%clk 0:01:01]} 41. Ne3 {[%clk 0:02:00]}  h4 {[%clk 0:00:53]} 42. Ng4 {[%clk 0:01:57]}  f5 {[%clk 0:00:50]} 43. Ne3 {[%clk 0:01:56]}  f4 {[%clk 0:00:50]} 44. Nd1 {[%clk 0:01:55]}  b4 {[%clk 0:00:45]} 45. Nf2 {[%clk 0:01:54]}  Rg8 {[%clk 0:00:43]} 46. Kf1 {[%clk 0:01:53]}  Rd8 {[%clk 0:00:35]} 47. Ne4 {[%clk 0:01:51]}  Rd4 {[%clk 0:00:30]} 48. Ke2 {[%clk 0:01:48]}  Ka3 {[%clk 0:00:30]} 49. Rc2 {[%clk 0:01:47]}  Rd8 {[%clk 0:00:20]} 50. Nd2 {[%clk 0:01:42]}  f6 {[%clk 0:00:17]} 51. Nc4+ {[%clk 0:01:41]}  Ka4 {[%clk 0:00:17]} 52. Nb6+ {[%clk 0:01:39]}  Ka3 {[%clk 0:00:17]} 53. Nc4+ {[%clk 0:01:39]}  Ka4 {[%clk 0:00:17]} 54. Nb2+ {[%clk 0:01:38]}  Ka3 {[%clk 0:00:16]} 55. Nd3 {[%clk 0:01:39]}  f5 {[%clk 0:00:14]} 56. Rc4 {[%clk 0:01:35]}  Rb8 {[%clk 0:00:11]} 57. Nc1 {[%clk 0:01:33]}  Kb2 {[%clk 0:00:10]} 58. Rc7 {[%clk 0:01:32]}  Rb5 {[%clk 0:00:08]} 59. Kd3 {[%clk 0:01:31]}  Rd5+ {[%clk 0:00:08]} 60. Ke2 {[%clk 0:01:32]}  Rb5 {[%clk 0:00:07]} 61. Rc4 {[%clk 0:01:29]}  Rb7 {[%clk 0:00:04]} 62. Nd3+ {[%clk 0:01:27]}  Ka3 {[%clk 0:00:04]} 63. Rc2 {[%clk 0:01:23]}  Re7 {[%clk 0:00:04]} 64. Nc5 {[%clk 0:01:22]}  e4 {[%clk 0:00:03]} 65. fxe4 {[%clk 0:01:22]}  fxe4 {[%clk 0:00:04]} 66. Nb3 {[%clk 0:01:22]}  Rg7 {[%clk 0:00:05]} 67. Kf2 {[%clk 0:01:22]}  e3+ {[%clk 0:00:04]} 68. Kf3 {[%clk 0:01:21]}  Re7 {[%clk 0:00:03]} 69. Nd4 {[%clk 0:01:22]}  Re8 {[%clk 0:00:04]} 70. Ne2 {[%clk 0:01:22]}  b3 {[%clk 0:00:04]} 71. axb3 {[%clk 0:01:22]}  Kxb3 {[%clk 0:00:05]} 72. Rc7 {[%clk 0:01:22]}  Rf8 {[%clk 0:00:04]} 73. Nxf4 {[%clk 0:01:21]}  e2 {[%clk 0:00:05]} 74. Re7 {[%clk 0:01:20]}  e1=Q {[%clk 0:00:01]} 75. Rxe1 {[%clk 0:00:30]}  Kc4 {[%clk 0:00:02]} 76. h3 {[%clk 0:00:28]}  Kd4 {[%clk 0:00:02]} 77. Kg4 {[%clk 0:00:25]}  Kc5 {[%clk 0:00:03]} 78. Rf1 {[%clk 0:00:23]}  Kd6 {[%clk 0:00:04]} 79. Kxh4 {[%clk 0:00:23]}  Rg8 {[%clk 0:00:05]} 80. g4 {[%clk 0:00:23]}  Ra8 {[%clk 0:00:05]} 81. Kg3 {[%clk 0:00:23]}  Ra3+ {[%clk 0:00:05]} 82. Rf3 {[%clk 0:00:23]}  Ra1 {[%clk 0:00:06]} 83. g5 {[%clk 0:00:23]}  Ke7 {[%clk 0:00:06]} 84. h4 {[%clk 0:00:23]}  Kf7 {[%clk 0:00:07]} 85. Kg4 {[%clk 0:00:24]}  Kg7 {[%clk 0:00:07]} 86. Kh5 {[%clk 0:00:24]}  Ra3 {[%clk 0:00:07]} 87. Ne6+ {[%clk 0:00:20]}  Kh8 {[%clk 0:00:07]} 88. Rxa3 {[%clk 0:00:18]}  Kh7 {[%clk 0:00:07]} 89. Ra7+ {[%clk 0:00:17]}  Kh8 {[%clk 0:00:08]} 90. Kg6 {[%clk 0:00:17]}  Kg8 {[%clk 0:00:09]} 91. h5 {[%clk 0:00:18]}  Kh8 {[%clk 0:00:08]} 92. h6 {[%clk 0:00:19]}  Kg8 {[%clk 0:00:09]} 93. Kh5 {[%clk 0:00:19]}  Kh8 {[%clk 0:00:10]} 94. g6 {[%clk 0:00:20]}  Kg8 {[%clk 0:00:11]} 95. Kg4 {[%clk 0:00:21]}  Kh8 {[%clk 0:00:12]} 96. Kg3 {[%clk 0:00:21]}  Kg8 {[%clk 0:00:13]} 97. Kh3 {[%clk 0:00:22]}  Kh8 {[%clk 0:00:14]} 98. Kg2 {[%clk 0:00:23]}  Kg8 {[%clk 0:00:15]} 99. Kg1 {[%clk 0:00:23]}  Kh8 {[%clk 0:00:16]} 100. Kh1 {[%clk 0:00:24]}  Kg8 {[%clk 0:00:17]} 101. Kg2 {[%clk 0:00:25]}  Kh8 {[%clk 0:00:17]} 102. Kf1 {[%clk 0:00:26]}  Kg8 {[%clk 0:00:18]} 103. Ke2 {[%clk 0:00:26]}  Kh8 {[%clk 0:00:19]} 104. Kd3 {[%clk 0:00:27]}  Kg8 {[%clk 0:00:20]} 105. Ke4 {[%clk 0:00:28]}  Kh8 {[%clk 0:00:21]} 106. Kd5 {[%clk 0:00:29]}  Kg8 {[%clk 0:00:22]} 107. Kd6 {[%clk 0:00:29]}  Kh8 {[%clk 0:00:22]} 108. Ke5 {[%clk 0:00:30]}  Kg8 {[%clk 0:00:23]} 109. Kf6 {[%clk 0:00:31]}  Kh8 {[%clk 0:00:24]} 110. Ng5 {[%clk 0:00:29]}  Kg8 {[%clk 0:00:25]} 111. Rh7 {[%clk 0:00:21]}  Kf8 {[%clk 0:00:25]} 112. Rg7 {[%clk 0:00:22]}  Ke8 {[%clk 0:00:25]} 113. h7 {[%clk 0:00:22]}  Kd8 {[%clk 0:00:26]} 114. h8=N {[%clk 0:00:20]}  Kc8 {[%clk 0:00:27]} 115. Ke6 {[%clk 0:00:20]}  Kb8 {[%clk 0:00:28]} 116. Kd6 {[%clk 0:00:20]}  Ka8 {[%clk 0:00:29]} 117. Re7 {[%clk 0:00:19]}  Kb8 {[%clk 0:00:30]} 118. Nhf7 {[%clk 0:00:19]}  Ka8 {[%clk 0:00:30]} 119. Ne5 {[%clk 0:00:20]}  Kb8 {[%clk 0:00:31]} 120. g7 {[%clk 0:00:17]}  Ka8 {[%clk 0:00:32]} 121. g8=B {[%clk 0:00:16]}  Kb8 {[%clk 0:00:33]} 122. Bf7 {[%clk 0:00:13]}  Ka8 {[%clk 0:00:34]} 123. Ne6 {[%clk 0:00:11]}  Kb8 {[%clk 0:00:35]} 124. Nc6+ {[%clk 0:00:11]}  Ka8 {[%clk 0:00:36]} 125. Ra7# {[%clk 0:00:06]} 1-0


[Site "https://www.chess.com"]

[Event "Titled Tuesday Blitz November 07 Late 2023"]
[White "Romero Ruscalleda, Josep"]
[Black "Khater, Sherif"]
[WhiteFideId "2231859"]
[BlackFideId "2034280"]
[WhiteElo "2314"]
[BlackElo "2480"]
[Result "0-1"]
[Round "11"]
[TimeControl "180+1"]
[Date "2023.11.08"]
[WhiteClock "0:00:24"]
[BlackClock "0:01:42"]
[Board "70"]

1. e4 {[%clk 0:02:56]}  a6 {[%clk 0:03:00]} 2. d4 {[%clk 0:02:55]}  c6 {[%clk 0:03:01]} 3. Nf3 {[%clk 0:02:54]}  d5 {[%clk 0:03:02]} 4. e5 {[%clk 0:02:53]}  Bf5 {[%clk 0:03:02]} 5. c3 {[%clk 0:02:53]}  e6 {[%clk 0:03:02]} 6. Nbd2 {[%clk 0:02:49]}  Nd7 {[%clk 0:03:03]} 7. Be2 {[%clk 0:02:48]}  h6 {[%clk 0:03:03]} 8. Nf1 {[%clk 0:02:48]}  Ne7 {[%clk 0:03:03]} 9. Ng3 {[%clk 0:02:48]}  Bh7 {[%clk 0:03:02]} 10. O-O {[%clk 0:02:48]}  Nf5 {[%clk 0:03:03]} 11. Qb3 {[%clk 0:02:36]}  b5 {[%clk 0:03:01]} 12. a4 {[%clk 0:02:35]}  Nxg3 {[%clk 0:03:00]} 13. hxg3 {[%clk 0:02:35]}  Be7 {[%clk 0:03:01]} 14. Be3 {[%clk 0:02:27]}  O-O {[%clk 0:03:00]} 15. Ra2 {[%clk 0:02:19]}  Nb6 {[%clk 0:03:00]} 16. axb5 {[%clk 0:02:15]}  axb5 {[%clk 0:03:01]} 17. Rfa1 {[%clk 0:02:15]}  Rxa2 {[%clk 0:03:00]} 18. Qxa2 {[%clk 0:02:15]}  Nc4 {[%clk 0:03:01]} 19. b3 {[%clk 0:02:05]}  Nxe3 {[%clk 0:02:59]} 20. fxe3 {[%clk 0:02:06]}  Bg5 {[%clk 0:03:00]} 21. Kf2 {[%clk 0:02:01]}  f6 {[%clk 0:03:00]} 22. Nxg5 {[%clk 0:01:56]}  hxg5 {[%clk 0:02:54]} 23. Kg1 {[%clk 0:01:33]}  fxe5 {[%clk 0:02:54]} 24. dxe5 {[%clk 0:01:33]}  Qc7 {[%clk 0:02:55]} 25. c4 {[%clk 0:01:28]}  Qxe5 {[%clk 0:02:54]} 26. cxd5 {[%clk 0:01:26]}  Qxe3+ {[%clk 0:02:54]} 27. Kh1 {[%clk 0:01:26]}  exd5 {[%clk 0:02:40]} 28. Bg4 {[%clk 0:01:22]}  Qxg3 {[%clk 0:02:39]} 29. Be6+ {[%clk 0:01:21]}  Kh8 {[%clk 0:02:38]} 30. Qa7 {[%clk 0:01:11]}  Be4 {[%clk 0:02:24]} 31. Qg1 {[%clk 0:01:00]}  Qh4+ {[%clk 0:02:20]} 32. Qh2 {[%clk 0:01:00]}  Qxh2+ {[%clk 0:02:20]} 33. Kxh2 {[%clk 0:01:00]}  d4 {[%clk 0:02:13]} 34. Kg3 {[%clk 0:00:58]}  g6 {[%clk 0:02:05]} 35. b4 {[%clk 0:00:54]}  Kg7 {[%clk 0:02:05]} 36. Rd1 {[%clk 0:00:47]}  d3 {[%clk 0:02:04]} 37. Bd7 {[%clk 0:00:43]}  Kf6 {[%clk 0:01:57]} 38. Bg4 {[%clk 0:00:40]}  Ke5 {[%clk 0:01:57]} 39. Rc1 {[%clk 0:00:38]}  Kd4 {[%clk 0:01:56]} 40. Rc5 {[%clk 0:00:38]}  Rf4 {[%clk 0:01:47]} 41. Rxg5 {[%clk 0:00:37]}  Rxg4+ {[%clk 0:01:41]} 42. Rxg4 {[%clk 0:00:33]}  d2 {[%clk 0:01:42]} 43. Rxg6 {[%clk 0:00:24]}  Bxg6 {[%clk 0:01:42]} 0-1


[Site "https://www.chess.com"]

[Event "Titled Tuesday Blitz November 07 Late 2023"]
[White "Mesa Cruz, Juan Carlos"]
[Black "Carrasco Miranda, Andres"]
[WhiteFideId "6423400"]
[BlackFideId "3405990"]
[WhiteElo "2309"]
[BlackElo "2411"]
[Result "0-1"]
[Round "11"]
[TimeControl "180+1"]
[Date "2023.11.08"]
[WhiteClock "0:00:03"]
[BlackClock "0:00:18"]
[Board "71"]

1. e4 {[%clk 0:02:54]}  e5 {[%clk 0:02:59]} 2. Nf3 {[%clk 0:02:53]}  Nc6 {[%clk 0:02:59]} 3. Bb5 {[%clk 0:02:52]}  Nf6 {[%clk 0:02:58]} 4. d3 {[%clk 0:02:50]}  Bc5 {[%clk 0:02:57]} 5. c3 {[%clk 0:02:50]}  O-O {[%clk 0:02:56]} 6. b4 {[%clk 0:02:49]}  Be7 {[%clk 0:02:55]} 7. a4 {[%clk 0:02:48]}  d5 {[%clk 0:02:54]} 8. Bxc6 {[%clk 0:02:09]}  bxc6 {[%clk 0:02:52]} 9. Nxe5 {[%clk 0:02:09]}  dxe4 {[%clk 0:02:50]} 10. Nxc6 {[%clk 0:02:08]}  Qe8 {[%clk 0:02:46]} 11. Nxe7+ {[%clk 0:02:07]}  Qxe7 {[%clk 0:02:47]} 12. O-O {[%clk 0:02:07]}  Rd8 {[%clk 0:02:24]} 13. Re1 {[%clk 0:01:55]}  Qd6 {[%clk 0:01:59]} 14. Bg5 {[%clk 0:01:28]}  Ng4 {[%clk 0:01:52]} 15. g3 {[%clk 0:00:45]}  f6 {[%clk 0:01:35]} 16. Bf4 {[%clk 0:00:37]}  Qxd3 {[%clk 0:01:33]} 17. Qxd3 {[%clk 0:00:36]}  exd3 {[%clk 0:01:28]} 18. Nd2 {[%clk 0:00:23]}  Bb7 {[%clk 0:01:21]} 19. h3 {[%clk 0:00:17]}  Ne5 {[%clk 0:01:01]} 20. Bxe5 {[%clk 0:00:16]}  fxe5 {[%clk 0:01:01]} 21. Rxe5 {[%clk 0:00:16]}  Re8 {[%clk 0:01:02]} 22. Rae1 {[%clk 0:00:15]}  Rxe5 {[%clk 0:01:01]} 23. Rxe5 {[%clk 0:00:16]}  Kf7 {[%clk 0:00:56]} 24. f4 {[%clk 0:00:16]}  Rd8 {[%clk 0:00:37]} 25. Kf2 {[%clk 0:00:16]}  Bc8 {[%clk 0:00:37]} 26. g4 {[%clk 0:00:12]}  Bd7 {[%clk 0:00:35]} 27. a5 {[%clk 0:00:11]}  Ba4 {[%clk 0:00:33]} 28. Ke3 {[%clk 0:00:11]}  Bc2 {[%clk 0:00:33]} 29. Re4 {[%clk 0:00:10]}  Rd6 {[%clk 0:00:30]} 30. Re5 {[%clk 0:00:09]}  Rh6 {[%clk 0:00:29]} 31. Rh5 {[%clk 0:00:08]}  Re6+ {[%clk 0:00:24]} 32. Re5 {[%clk 0:00:07]}  Rh6 {[%clk 0:00:23]} 33. Nf3 {[%clk 0:00:05]}  Rxh3 {[%clk 0:00:22]} 34. Kf2 {[%clk 0:00:05]}  Rxf3+ {[%clk 0:00:19]} 35. Kxf3 {[%clk 0:00:05]}  d2 {[%clk 0:00:19]} 36. Rd5 {[%clk 0:00:04]}  d1=Q+ {[%clk 0:00:19]} 37. Rxd1 {[%clk 0:00:04]}  Bxd1+ {[%clk 0:00:19]} 38. Ke4 {[%clk 0:00:01]}  Bxg4 {[%clk 0:00:19]} 39. Kd5 {[%clk 0:00:01]}  Bd7 {[%clk 0:00:19]} 40. Kc5 {[%clk 0:00:01]}  h5 {[%clk 0:00:18]} 41. c4 {[%clk 0:00:02]}  h4 {[%clk 0:00:18]} 42. b5 {[%clk 0:00:03]}  h3 {[%clk 0:00:19]} 43. b6 {[%clk 0:00:02]}  axb6+ {[%clk 0:00:18]} 44. axb6 {[%clk 0:00:03]}  cxb6+ {[%clk 0:00:18]} 45. Kxb6 {[%clk 0:00:04]}  h2 {[%clk 0:00:18]} 46. c5 {[%clk 0:00:04]}  h1=Q {[%clk 0:00:18]} 47. Kc7 {[%clk 0:00:03]}  Qc6+ {[%clk 0:00:18]} 0-1


[Site "https://www.chess.com"]